bitfinex/quotes_ETHUSD_20250920
["timestamp","ask_amount","ask_price","bid_price","bid_amount"]
[1758399970782,0.002,4490.9,4490.7,3.39595327]
[1758399971985,0.002,4490.9,4490.8,2.22677473]
[1758399972894,0.002,4490.9,4490.8,2.45577473]
[1758399974098,0.002,4490.9,4490.8,2.22677473]
[1758399974326,0.002,4490.9,4490.8,2.48984247]
[1758399974511,0.002,4490.9,4490.8,3.52738003]
[1758399975364,0.002,4490.9,4490.8,8.00438003]
[1758399975575,0.002,4490.9,4490.8,6.94457473]
[1758399975776,0.002,4490.9,4490.8,9.94457473]
[1758399976076,0.002,4490.9,4490.8,10.39715244]
[1758399976277,0.002,4490.9,4490.8,9.94457473]
[1758399976489,0.002,4490.9,4490.8,11.87647484]
[1758399980371,0.002,4490.9,4490.8,12.32281009]
[1758399995243,0.002,4490.9,4490.8,12.08201009]
[1758399995549,0.002,4490.9,4490.8,12.32281009]
[1758400009264,0.002,4490.9,4490.8,12.32181009]
[1758400018958,0.002,4490.9,4490.8,12.43095]
[1758400020022,0.002,4490.9,4490.8,12.32181009]
[1758400020337,0.002,4490.9,4490.8,12.4346197]
[1758400023617,0.002,4490.9,4490.8,12.32181009]
[1758400024597,0.002,4490.9,4490.8,12.43170835]
[1758400024926,0.002,4490.9,4490.8,12.32181009]
[1758400028054,0.002,4490.9,4490.8,12.08101009]
[1758400028199,0.002,4491.3,4491.2,12.13369489]
[1758400028399,0.002,4491.3,4491.2,17.55272865]
[1758400028693,0.002,4491.8,4491.7,3.01832856]
[1758400028896,0.002,4491.8,4491.7,15.84071032]
[1758400029127,0.002,4491.8,4491.7,15.81844704]
[1758400029532,0.002,4491.8,4491.7,16.06284704]
[1758400029733,0.002,4491.8,4491.7,17.89177123]
[1758400033827,0.002,4491.8,4491.7,16.71433226]
[1758400038292,0.002,4492.2,4492.1,3.01813031]
[1758400038418,0.002,4492.2,4492.1,14.66207112]
[1758400038618,0.002,4492.2,4492.1,14.63980982]
[1758400038855,0.002,4492.2,4492.1,16.35100053]
[1758400039017,0.002,4492.2,4492.1,16.59700053]
[1758400051642,0.002,4492.2,4492.1,16.84290053]
[1758400054277,0.002,4492.2,4492.1,13.84290053]
[1758400068016,0.002,4492.2,4492.1,8.65832102]
[1758400069222,0.2391,4492.2,4492.1,8.65832102]
[1758400069751,0.002,4492.2,4492.1,8.65832102]
[1758400079710,0.2391,4492.2,4492.1,5.90813031]
[1758400082210,0.2391,4492.2,4492.1,5.91113031]
[1758400087692,0.002,4492.2,4492.1,5.91113031]
[1758400089534,0.002,4492.2,4492.1,2.22613031]
[1758400089740,0.002,4492.2,4492.1,5.91113031]
[1758400096127,0.2468,4492.2,4492.1,2.22613031]
[1758400096332,0.2468,4492.2,4492.1,5.91113031]
[1758400099913,0.002,4492.2,4492.1,5.91113031]
[1758400102282,0.002,4492.2,4492.1,3.684]
[1758400102568,0.2468,4492.2,4492.1,3.684]
[1758400102983,0.2468,4492.2,4492.0,2.22616137]
[1758400103184,0.2468,4492.2,4492.1,3.684]
[1758400103770,0.2468,4492.2,4492.1,5.91013031]
[1758400105248,0.2468,4492.2,4492.0,2.22617567]
[1758400105452,0.2468,4492.2,4492.1,3.684]
[1758400107267,0.002,4492.2,4492.1,3.684]
[1758400108175,0.002,4492.2,4492.1,5.91013031]
[1758400108940,0.002,4492.2,4492.1,6.15653031]
[1758400118290,0.002,4492.2,4492.1,2.47253031]
[1758400118456,0.002,4492.2,4492.1,6.15653031]
[1758400131596,0.002,4492.2,4491.9,2.22621994]
[1758400131796,0.002,4492.2,4492.1,2.22613031]
[1758400132032,0.002,4492.2,4492.1,3.683]
[1758400133494,0.002,4492.2,4492.1,5.90913031]
[1758400142130,0.002,4492.2,4492.1,3.683]
[1758400142369,0.002,4492.2,4492.1,5.90913031]
[1758400148661,0.002,4492.2,4492.1,3.683]
[1758400149449,0.002,4492.2,4492.1,5.90913031]
[1758400150345,0.002,4492.2,4492.1,2.22613031]
[1758400150549,0.002,4492.2,4492.1,3.685]
[1758400151389,0.002,4492.2,4492.1,5.91113031]
[1758400152503,0.002,4492.2,4492.1,3.685]
[1758400152704,0.2435,4492.2,4492.0,5.91116243]
[1758400153264,0.002,4492.2,4492.0,5.91116243]
[1758400154568,0.002,4492.2,4492.0,2.22616243]
[1758400154771,0.002,4492.2,4492.0,5.91116243]
[1758400156167,0.002,4492.2,4492.1,2.22613031]
[1758400159411,0.002,4492.2,4492.0,3.685]
[1758400159805,0.002,4492.2,4492.0,6.13663737]
[1758400160107,0.002,4492.2,4492.1,2.22613031]
[1758400162212,0.002,4492.2,4492.1,2.45163031]
[1758400164578,0.002,4492.2,4492.1,2.22613031]
[1758400165899,0.002,4492.2,4492.1,2.45163031]
[1758400166112,0.002,4492.2,4492.1,2.22613031]
[1758400167300,0.002,4492.2,4492.0,2.22613616]
[1758400167603,0.002,4492.2,4492.1,2.22613031]
[1758400174157,0.002,4492.2,4491.9,3.684]
[1758400174958,0.002,4492.2,4491.9,5.91021329]
[1758400175461,0.002,4492.2,4491.9,2.22621329]
[1758400182690,0.002,4492.2,4491.8,3.685]
[1758400182893,0.002,4492.2,4492.0,2.22617426]
[1758400184594,0.002,4492.2,4491.9,2.45171266]
[1758400189198,0.002,4492.2,4492.0,2.22617556]
[1758400191408,0.002,4492.2,4491.9,2.4517123]
[1758400195511,0.002,4492.2,4492.0,0.2253]
[1758400196371,0.002,4492.2,4492.0,2.45147854]
[1758400197207,0.002,4492.2,4492.0,0.2253]
[1758400200382,0.002,4492.2,4491.8,2.22724649]
[1758400200595,0.002,4492.2,4491.9,2.45151986]
[1758400201403,0.002,4492.2,4491.9,2.22621986]
[1758400201603,0.002,4492.2,4492.0,0.2253]
[1758400203181,0.002,4492.2,4492.1,0.2467]
[1758400203427,0.002,4492.2,4492.1,2.47283031]
[1758400203994,0.002,4492.2,4492.1,0.2467]
[1758400204410,0.002,4492.2,4492.1,2.47283031]
[1758400205005,0.002,4492.2,4492.1,0.2467]
[1758400207553,0.002,4492.2,4492.1,2.47283031]
[1758400215096,0.002,4492.2,4492.1,0.2467]
[1758400215270,0.002,4492.2,4491.8,0.001]
[1758400215493,0.002,4492.2,4491.9,2.22622326]
[1758400216168,0.002,4492.2,4492.0,2.22617661]
[1758400218437,0.002,4492.2,4491.9,2.22622056]
[1758400219886,0.002,4492.2,4492.0,2.22617703]
[1758400220980,6.11312228,4492.1,4492.0,2.22617703]
[1758400221790,6.78243571,4492.1,4492.0,2.22617703]
[1758400225186,6.78243571,4492.1,4491.9,0.2254]
[1758400225686,6.11312228,4492.1,4491.9,0.2254]
[1758400225847,0.66931343,4492.0,4491.9,2.45162943]
[1758400226386,0.66931343,4492.0,4491.8,2.22727603]
[1758400226768,6.11312228,4492.1,4491.8,2.22727603]
[1758400227092,0.66931343,4492.0,4491.8,2.22727603]
[1758400227575,0.66931343,4492.0,4491.8,2.45267603]
[1758400227888,0.66931343,4492.0,4491.9,2.22622943]
[1758400231380,6.78432765,4492.0,4491.9,2.22622943]
[1758400231769,6.78432765,4492.0,4491.9,2.45162943]
[1758400233271,0.66931343,4492.0,4491.9,2.45162943]
[1758400250516,0.67131343,4492.0,4491.9,2.45162943]
[1758400260419,0.67131343,4492.0,4491.9,2.22622943]
[1758400265337,0.67131343,4492.0,4491.8,0.001]
[1758400265540,0.67131343,4492.0,4491.8,2.22726715]
[1758400266005,0.67131343,4492.0,4491.9,2.22622943]
[1758400266209,0.90761343,4492.0,4491.9,2.22622943]
[1758400266506,0.90761343,4492.0,4491.8,2.22726887]
[1758400267038,0.67131343,4492.0,4491.8,2.22726887]
[1758400267541,0.67131343,4492.0,4491.9,2.22622943]
[1758400269207,0.67131343,4492.0,4491.8,2.22727568]
[1758400269956,0.67131343,4492.0,4491.9,2.22622943]
[1758400270111,0.67131343,4492.0,4491.8,0.001]
[1758400270453,0.67131343,4492.0,4491.8,2.22726873]
[1758400270743,0.67131343,4492.0,4491.9,2.22622943]
[1758400271447,0.67131343,4492.0,4491.8,0.001]
[1758400271950,0.67131343,4492.0,4491.9,2.22622943]
[1758400272156,0.67131343,4492.0,4491.8,2.22727062]
[1758400273553,6.3490971,4491.9,4491.8,0.001]
[1758400273754,12.25832653,4491.9,4491.8,0.001]
[1758400274718,15.25832653,4491.9,4491.8,0.001]
[1758400277762,14.0877103,4491.9,4491.8,0.001]
[1758400280440,14.0377103,4491.9,4491.8,0.001]
[1758400285320,11.81148087,4491.9,4491.8,0.001]
[1758400285528,11.57518087,4491.9,4491.8,0.242]
[1758400285860,11.57718087,4491.9,4491.8,0.242]
[1758400286455,3.002,4491.9,4491.8,0.242]
[1758400286660,6.685,4491.9,4491.8,0.242]
[1758400290097,6.685,4491.9,4491.8,0.001]
[1758400304137,6.685,4491.9,4491.8,0.2315]
[1758400304339,6.685,4491.9,4491.8,0.70214912]
[1758400305421,6.685,4491.9,4491.8,0.2315]
[1758400326069,6.685,4491.9,4491.8,0.001]
[1758400329581,0.002,4491.9,4491.8,0.2409]
[1758400329739,0.002,4491.9,4491.8,2.46717899]
[1758400329939,0.002,4491.9,4491.8,2.48944177]
[1758400330283,0.002,4491.9,4491.8,2.96102293]
[1758400340409,0.002,4491.9,4491.8,6.64402293]
[1758400340727,0.002,4491.9,4491.8,6.62176015]
[1758400345007,0.002,4491.9,4491.8,10.85176015]
[1758400356855,0.002,4491.9,4491.8,6.62176015]
[1758400361343,0.002,4491.9,4491.8,6.62076015]
[1758400361548,0.002,4491.9,4491.8,2.69886015]
[1758400361751,0.002,4491.9,4491.8,6.38086015]
[1758400361939,0.2445,4491.9,4491.8,6.38086015]
[1758400365856,0.002,4491.9,4491.8,6.38086015]
[1758400371479,0.002,4491.9,4491.8,0.001]
[1758400371633,0.2295,4491.9,4491.8,5.90927899]
[1758400371837,0.2295,4491.9,4491.8,0.001]
[1758400374263,0.002,4491.9,4491.8,0.001]
[1758400374470,0.002,4491.9,4491.8,2.22727899]
[1758400375458,0.2295,4491.9,4491.8,2.22727899]
[1758400377577,0.002,4491.9,4491.8,2.22727899]
[1758400380885,0.002,4491.9,4491.8,2.46487899]
[1758400381083,0.002,4491.9,4491.8,3.32669322]
[1758400383452,0.002,4491.9,4491.8,3.30443044]
[1758400386672,0.002,4491.9,4491.8,7.53443044]
[1758400407711,0.002,4491.9,4491.8,7.29683044]
[1758400409603,0.002,4491.9,4491.8,10.97883044]
[1758400410528,0.002,4491.9,4491.8,5.07055145]
[1758400410726,0.238,4491.9,4491.8,4.231]
[1758400410942,0.238,4491.9,4491.8,10.13927899]
[1758400413654,0.002,4491.9,4491.8,10.13927899]
[1758400418009,0.002,4491.9,4491.8,6.45727899]
[1758400418258,0.002,4491.9,4491.8,10.13927899]
[1758400419937,5.17679695,4491.9,4491.8,4.231]
[1758400420139,5.69487664,4491.9,4491.8,4.231]
[1758400420462,0.75607969,4491.9,4491.8,4.231]
[1758400421775,5.69487664,4491.9,4491.8,4.231]
[1758400422147,5.69487664,4491.9,4491.8,0.001]
[1758400429294,5.45887664,4491.9,4491.8,0.001]
[1758400432000,0.52007969,4491.9,4491.8,0.001]
[1758400436274,0.002,4491.9,4491.8,0.001]
[1758400437525,0.002,4491.9,4491.8,2.47844177]
[1758400439931,0.002,4491.9,4491.8,6.70844177]
[1758400440099,0.002,4491.9,4491.8,6.68617899]
[1758400442931,0.002,4491.9,4491.8,4.231]
[1758400443140,4.94079695,4491.9,4491.8,4.231]
[1758400443300,5.18489695,4491.9,4491.8,4.231]
[1758400447053,0.2461,4491.9,4491.8,4.231]
[1758400447279,0.002,4491.9,4491.8,4.231]
[1758400462264,0.61643134,4491.9,4491.8,4.231]
[1758400463363,0.002,4491.9,4491.8,4.231]
[1758400463772,0.002,4491.9,4491.8,0.001]
[1758400469582,0.002,4491.9,4491.8,4.231]
[1758400473996,0.002,4491.9,4491.8,2.49854177]
[1758400474376,0.002,4491.9,4491.8,2.47627899]
[1758400474581,0.002,4491.9,4491.8,3.31484174]
[1758400480021,0.002,4491.9,4491.8,6.99884174]
[1758400484538,0.002,4491.9,4491.8,11.22884174]
[1758400492960,0.002,4491.9,4491.8,4.231]
[1758400500433,0.229,4491.9,4491.8,4.231]
[1758400500634,0.002,4491.9,4491.8,4.231]
[1758400504970,0.2307,4491.9,4491.8,4.231]
[1758400506280,0.002,4491.9,4491.8,4.231]
[1758400506440,0.2307,4491.9,4491.8,4.231]
[1758400507773,0.002,4491.9,4491.8,4.231]
[1758400507976,0.2307,4491.9,4491.8,0.001]
[1758400513497,0.002,4491.9,4491.8,0.001]
[1758400523240,3.686,4491.9,4491.8,0.001]
[1758400524080,3.686,4491.9,4491.8,0.2399]
[1758400524520,3.686,4491.9,4491.8,0.001]
[1758400543370,5.91222943,4491.9,4491.8,0.001]
[1758400543674,6.13832943,4491.9,4491.8,0.001]
[1758400544468,5.91222943,4491.9,4491.8,0.001]
[1758400544768,6.15702943,4491.9,4491.8,0.001]
[1758400545871,5.91222943,4491.9,4491.8,0.001]
[1758400546966,5.91222943,4491.9,4491.8,4.231]
[1758400558179,3.686,4491.9,4491.8,4.231]
[1758400558546,5.91222943,4491.9,4491.8,4.231]
[1758400558997,0.002,4491.9,4491.8,4.231]
[1758400559278,0.002,4491.9,4491.8,4.8869]
[1758400565486,0.002,4491.9,4491.8,4.4638]
[1758400572297,0.002,4491.9,4491.8,0.2338]
[1758400574893,0.002,4491.9,4491.8,0.001]
[1758400585709,0.002,4491.9,4491.8,0.239]
[1758400588444,0.002,4491.9,4491.8,4.469]
[1758400594100,0.002,4491.9,4491.8,6.45727899]
[1758400594306,0.002,4491.9,4491.8,7.56364929]
[1758400599552,0.002,4491.9,4491.8,5.3373703]
[1758400600356,0.002,4491.9,4491.8,7.56364929]
[1758400616017,0.002,4491.9,4491.8,11.25074929]
[1758400620315,0.002,4491.9,4491.8,10.38237899]
[1758400621227,0.002,4492.0,4491.9,6.45422943]
[1758400621590,0.002,4492.0,4491.9,6.69632943]
[1758400626335,0.002,4492.0,4491.9,6.45422943]
[1758400626504,0.002,4492.0,4491.9,4.228]
[1758400626705,0.2406,4492.0,4491.9,7.911]
[1758400626932,0.2406,4492.0,4491.9,4.228]
[1758400630141,0.2406,4492.0,4491.9,7.913]
[1758400630468,0.002,4492.0,4491.9,10.13922943]
[1758400631267,0.002,4492.0,4491.9,7.913]
[1758400661294,0.002,4492.0,4491.9,4.228]
[1758400661500,0.002,4492.0,4491.9,7.911]
[1758400661991,0.2382,4492.0,4491.9,4.228]
[1758400667002,0.002,4492.0,4491.9,4.228]
[1758400683020,0.2311,4492.0,4491.9,4.228]
[1758400683221,3.19728028,4492.0,4491.9,4.228]
[1758400683553,3.43988028,4492.0,4491.9,4.228]
[1758400684045,3.64870819,4492.0,4491.9,4.228]
[1758400685030,3.43988028,4492.0,4491.9,4.228]
[1758400687638,7.12388028,4492.0,4491.9,4.228]
[1758400690569,6.89478028,4492.0,4491.9,4.228]
[1758400690868,7.12388028,4492.0,4491.9,4.228]
[1758400691878,7.3326537,4492.0,4491.9,4.228]
[1758400692063,12.27151646,4492.0,4491.9,4.228]
[1758400695079,12.06274304,4492.0,4491.9,4.228]
[1758400700908,2.22622943,4491.9,4491.8,4.229]
[1758400701268,2.51553757,4491.9,4491.8,4.229]
[1758400712796,2.51553757,4491.9,4491.8,0.001]
[1758400714887,2.51553757,4491.9,4491.8,0.2446]
[1758400717381,2.22622943,4491.9,4491.8,0.2446]
[1758400718207,2.22822943,4491.9,4491.8,0.2446]
[1758400719406,0.002,4491.9,4491.8,0.2446]
[1758400719585,3.686,4491.9,4491.8,0.2446]
[1758400719999,0.002,4491.9,4491.8,6.72114177]
[1758400720174,0.002,4491.9,4491.8,7.59363074]
[1758400721469,0.002,4491.9,4491.8,5.36735175]
[1758400723496,0.002,4491.9,4491.8,7.59363074]
[1758400724219,0.002,4491.9,4491.8,11.27763074]
[1758400732424,0.002,4491.9,4491.8,7.59363074]
[1758400732633,0.002,4491.9,4491.8,11.27663074]
[1758400745459,0.002,4492.0,4491.9,6.45222943]
[1758400745655,0.002,4492.0,4491.9,8.03833861]
[1758400746056,0.002,4492.0,4491.9,5.58500918]
[1758400746757,0.002,4492.0,4491.9,7.81123861]
[1758400748740,0.002,4492.0,4491.9,8.03833861]
[1758400753544,0.002,4492.0,4491.9,8.12756089]
[1758400755776,0.002,4492.4,4492.3,6.4460312]
[1758400755979,0.002,4492.4,4492.3,10.77363432]
[1758400756174,0.002,4492.4,4492.3,11.01123432]
[1758400768114,0.002,4492.4,4492.3,11.01223432]
[1758400770082,0.002,4492.4,4492.3,15.94925969]
[1758400775223,0.012,4492.9,4492.6,6.44188256]
[1758400775523,0.012,4492.9,4492.6,11.94199678]
[1758400779833,0.012,4492.9,4492.6,16.87902215]
[1758400780130,0.012,4492.9,4492.6,17.11662215]
[1758400781531,0.012,4492.9,4492.6,12.17959678]
[1758400783145,0.012,4492.9,4492.6,11.94199678]
[1758400783442,0.012,4492.9,4492.6,12.17959678]
[1758400783638,0.012,4492.9,4492.6,17.11662215]
[1758400784440,0.012,4492.9,4492.6,13.69262215]
[1758400784742,0.012,4492.9,4492.6,13.78182872]
[1758400785043,0.012,4492.9,4492.6,16.78182872]
[1758400795523,0.012,4492.9,4492.6,16.76962872]
[1758400795846,0.002,4493.6,4493.4,2.22548626]
[1758400795847,0.2448,4493.5,4493.4,2.22548626]
[1758400796057,0.2448,4493.5,4493.4,10.10548626]
[1758400796560,0.002,4493.6,4493.5,2.22543674]
[1758400796759,0.002,4493.6,4493.5,2.2476911]
[1758400797442,0.002,4493.6,4493.5,2.70436396]
[1758400800258,0.002,4493.6,4493.5,2.6821096]
[1758400800451,0.002,4493.6,4493.5,6.8781096]
[1758400800649,0.2468,4493.6,4493.5,8.50510292]
[1758400801663,0.002,4493.6,4493.5,8.50510292]
[1758400803561,0.002,4493.6,4493.5,12.19110292]
[1758400803755,0.002,4493.6,4493.5,12.42780292]
[1758400804462,0.002,4493.6,4493.5,17.12812829]
[1758400804649,0.002,4493.6,4493.5,17.36482829]
[1758400804960,0.002,4493.6,4493.5,20.36482829]
[1758400805130,0.002,4493.6,4493.5,16.96082829]
[1758400806244,0.002,4493.6,4493.5,16.96282829]
[1758400810042,0.002,4493.6,4493.5,12.02580292]
[1758400810247,0.002,4493.6,4493.5,16.96282829]
[1758400810937,0.002,4493.6,4493.5,16.96382829]
[1758400811635,0.002,4493.6,4493.5,11.79010292]
[1758400812165,0.002,4493.6,4493.5,8.10110292]
[1758400812482,0.002,4493.6,4493.5,12.02680292]
[1758400817197,0.002,4493.6,4493.5,8.10110292]
[1758400817354,0.002,4493.6,4493.5,11.79010292]
[1758400819574,0.002,4494.1,4494.0,6.17358914]
[1758400819898,0.002,4494.1,4494.0,9.86258914]
[1758400820306,0.002,4494.1,4494.0,9.95177522]
[1758400829986,0.002,4494.1,4494.0,10.18577522]
[1758400831302,0.002,4494.1,4494.0,9.95177522]
[1758400833525,0.002,4494.1,4494.0,10.40961885]
[1758400838960,0.002,4494.1,4494.0,10.64361885]
[1758400843746,0.002,4494.1,4494.0,10.40961885]
[1758400843961,0.002,4494.1,4494.0,10.64361885]
[1758400847253,0.002,4494.1,4494.0,6.72061885]
[1758400847454,0.002,4494.1,4494.0,10.40661885]
[1758400849664,0.002,4494.1,4494.0,10.31743277]
[1758400853997,0.002,4494.1,4494.0,10.54343277]
[1758400855183,0.002,4494.1,4494.0,6.85743277]
[1758400855389,0.002,4494.1,4494.0,10.54343277]
[1758400860676,0.002,4494.1,4494.0,10.31643277]
[1758400862612,0.002,4494.1,4494.0,10.54243277]
[1758400866189,0.002,4494.1,4494.0,6.85743277]
[1758400866377,0.002,4494.1,4494.0,10.54343277]
[1758400868520,0.002,4494.1,4494.0,10.63261785]
[1758400875463,0.002,4494.1,4494.0,11.42461785]
[1758400876128,0.002,4494.1,4494.0,7.73861785]
[1758400876459,0.002,4494.1,4494.0,11.42461785]
[1758400878922,0.002,4494.1,4494.0,7.51261785]
[1758400879265,0.002,4494.1,4494.0,11.44151785]
[1758400880264,0.002,4494.1,4494.0,11.19861785]
[1758400881669,0.002,4494.1,4494.0,7.51261785]
[1758400881971,0.002,4494.1,4494.0,11.19861785]
[1758400883464,0.002,4494.1,4494.0,6.72061785]
[1758400883671,0.002,4494.1,4494.0,10.31743277]
[1758400885066,0.002,4494.1,4494.0,6.63143277]
[1758400885371,0.002,4494.1,4494.0,10.31743277]
[1758400912519,0.002,4494.1,4494.0,10.56303277]
[1758400918045,4.93687604,4494.1,4494.0,9.85758914]
[1758400918347,4.93687604,4494.1,4494.0,3.9484]
[1758400918503,4.94607604,4494.1,4494.0,7.6334]
[1758400920455,4.93687604,4494.1,4494.0,7.6334]
[1758400925778,4.93687604,4494.1,4494.0,3.9484]
[1758400925977,5.72088229,4494.1,4494.0,3.9484]
[1758400927378,5.73008229,4494.1,4494.0,3.9484]
[1758400927780,5.72088229,4494.1,4494.0,3.9484]
[1758400936563,6.38990167,4494.1,4493.8,3.9494]
[1758400936772,2.22523865,4493.9,4493.8,3.9494]
[1758400936975,5.91843865,4493.9,4493.8,0.001]
[1758400938266,5.90923865,4493.9,4493.8,0.001]
[1758400947276,8.61887604,4493.9,4493.8,0.001]
[1758400947476,10.84411469,4493.9,4493.8,0.001]
[1758400947770,11.62812094,4493.9,4493.8,0.001]
[1758400950446,0.08921353,4494.0,4493.8,0.001]
[1758400950613,0.002,4494.1,4493.8,0.2447]
[1758400950813,0.09120458,4494.1,4493.9,0.2437]
[1758400957321,0.09120458,4494.1,4493.9,2.46893446]
[1758400957529,0.09120458,4494.1,4494.0,0.2437]
[1758400962915,0.46872504,4494.1,4493.8,0.001]
[1758400963135,3.688,4494.0,4493.8,0.001]
[1758400964033,4.35708952,4494.0,4493.8,0.2447]
[1758400965023,4.35708952,4494.0,4493.8,0.001]
[1758400965465,6.58228294,4494.0,4493.8,0.001]
[1758400965622,7.23407103,4494.0,4493.8,0.001]
[1758400965824,5.00887761,4494.0,4493.8,0.001]
[1758400969926,6.56498388,4494.0,4493.8,0.001]
[1758400970535,7.23407339,4494.0,4493.8,0.001]
[1758400970863,5.0088776,4494.0,4493.8,0.001]
[1758400972368,4.35708951,4494.0,4493.8,0.001]
[1758400975238,4.35708951,4494.0,4493.8,0.2487]
[1758400977261,4.35908951,4494.0,4493.8,0.2487]
[1758400980276,4.35908951,4494.0,4493.8,0.001]
[1758400980781,4.35908951,4494.0,4493.9,0.2477]
[1758400980958,4.35908951,4494.0,4493.8,0.001]
[1758401003014,4.35908951,4494.0,4493.8,0.2272]
[1758401004787,4.35908951,4494.0,4493.8,0.001]
[1758401011024,4.35908951,4494.0,4493.8,0.001]
[1758401030142,3.69,4494.0,4493.8,0.001]
[1758401030541,4.35908951,4494.0,4493.8,0.001]
[1758401042288,4.35908951,4494.0,4493.8,0.2362]
[1758401043127,4.35908951,4494.0,4493.9,0.2352]
[1758401043394,3.686,4494.0,4493.9,0.2352]
[1758401043682,0.002,4494.0,4493.9,2.48269103]
[1758401043978,0.002,4494.0,4493.9,3.62259885]
[1758401045074,0.002,4494.0,4493.9,7.57099885]
[1758401045280,0.002,4494.0,4493.9,7.54874647]
[1758401048491,0.002,4494.0,4493.9,5.32350782]
[1758401048888,0.002,4494.0,4493.9,4.65450634]
[1758401051196,0.67100148,4494.0,4493.9,4.65450634]
[1758401052395,0.67100148,4494.0,4493.9,6.87974499]
[1758401052562,0.002,4494.0,4493.9,6.87974499]
[1758401052758,0.002,4494.0,4493.9,4.65450634]
[1758401053662,0.002,4494.0,4493.9,3.9484]
[1758401054484,0.67102237,4494.0,4493.9,3.9484]
[1758401054673,2.89621151,4494.0,4493.9,3.9484]
[1758401054885,2.90541151,4494.0,4493.9,3.9484]
[1758401055090,0.68022237,4494.0,4493.9,3.9484]
[1758401055868,0.67102237,4494.0,4493.8,0.001]
[1758401056298,0.002,4494.0,4493.8,0.001]
[1758401056624,0.67106713,4494.0,4493.8,0.001]
[1758401070543,2.22523865,4493.9,4493.8,0.001]
[1758401070744,2.23443865,4493.9,4493.8,0.001]
[1758401071428,5.91943865,4493.9,4493.8,0.001]
[1758401072543,5.91023865,4493.9,4493.8,0.001]
[1758401079372,5.91223865,4493.9,4493.8,0.001]
[1758401079540,6.2824101,4493.9,4493.8,0.001]
[1758401111222,4.05717145,4493.9,4493.8,0.001]
[1758401111436,4.05717145,4493.9,4493.8,0.2364]
[1758401111437,3.687,4493.9,4493.8,0.2364]
[1758401112017,5.91223865,4493.9,4493.8,0.2364]
[1758401112319,3.687,4493.9,4493.8,0.2364]
[1758401113347,5.91223865,4493.9,4493.8,0.2364]
[1758401113559,5.91223865,4493.9,4493.8,0.001]
[1758401117255,3.687,4493.9,4493.8,0.001]
[1758401119435,5.91223865,4493.9,4493.8,0.001]
[1758401122936,5.91223865,4493.9,4493.8,0.2432]
[1758401123260,5.91223865,4493.9,4493.8,0.001]
[1758401126462,3.687,4493.9,4493.8,0.001]
[1758401126990,5.91223865,4493.9,4493.8,0.001]
[1758401127136,5.91223865,4493.9,4493.8,0.2432]
[1758401127766,5.91223865,4493.9,4493.8,0.001]
[1758401135672,3.687,4493.9,4493.8,0.2432]
[1758401135869,0.002,4493.9,4493.8,0.2432]
[1758401136072,3.686,4493.9,4493.8,0.2432]
[1758401136572,3.686,4493.9,4493.8,0.001]
[1758401137374,5.91123865,4493.9,4493.8,0.001]
[1758401139242,10.84707917,4493.9,4493.8,0.001]
[1758401139599,11.11848833,4493.9,4493.8,0.001]
[1758401139777,11.32734473,4493.9,4493.8,0.001]
[1758401140275,11.11848833,4493.9,4493.8,0.001]
[1758401142856,10.85627917,4493.9,4493.8,0.001]
[1758401145086,14.0650258,4493.9,4493.8,0.001]
[1758401148404,14.0558258,4493.9,4493.8,0.001]
[1758401160531,13.84707917,4493.9,4493.8,0.2468]
[1758401162330,13.84707917,4493.9,4493.8,0.001]
[1758401166248,14.05576418,4493.9,4493.8,0.001]
[1758401179000,14.05593572,4493.9,4493.8,0.001]
[1758401180694,9.1200952,4493.9,4493.8,0.001]
[1758401180894,14.05593572,4493.9,4493.8,0.001]
[1758401184005,14.05593928,4493.9,4493.8,0.001]
[1758401187097,14.05595002,4493.9,4493.8,0.001]
[1758401192515,15.98095002,4493.9,4493.8,0.001]
[1758401197747,11.0451095,4493.9,4493.8,0.001]
[1758401203430,11.04511759,4493.9,4493.8,0.001]
[1758401203647,11.04511971,4493.9,4493.8,0.001]
[1758401207538,11.04511394,4493.9,4493.8,0.001]
[1758401208348,11.04511394,4493.9,4493.8,0.2442]
[1758401210273,11.04511394,4493.9,4493.8,0.001]
[1758401220184,7.36111394,4493.9,4493.8,0.001]
[1758401220383,7.36111394,4493.9,4493.8,0.2442]
[1758401220384,2.13587529,4493.9,4493.8,0.2442]
[1758401220571,5.611,4493.9,4493.8,0.2442]
[1758401221182,7.83623865,4493.9,4493.8,0.2442]
[1758401223697,8.04497651,4493.9,4493.8,0.2442]
[1758401228322,7.83623865,4493.9,4493.8,0.2442]
[1758401228468,8.04490204,4493.9,4493.8,0.2442]
[1758401229306,7.83623865,4493.9,4493.8,0.2442]
[1758401238885,7.83623865,4493.9,4493.8,0.001]
[1758401241919,8.04489732,4493.9,4493.8,0.001]
[1758401242122,7.83623865,4493.9,4493.8,0.001]
[1758401242419,8.04490096,4493.9,4493.8,0.001]
[1758401255231,8.04497468,4493.9,4493.8,0.001]
[1758401257946,8.04495822,4493.9,4493.8,0.001]
[1758401268884,8.04495822,4493.9,4493.8,0.2384]
[1758401269092,8.04495822,4493.9,4493.8,0.001]
[1758401279145,8.04495822,4493.9,4493.8,0.2384]
[1758401281059,8.04508684,4493.9,4493.8,0.2384]
[1758401284185,4.36108684,4493.9,4493.8,0.2316]
[1758401284365,8.04508684,4493.9,4493.8,0.2316]